fUST/lending_fUST_20240902
["ID","MTS","AMOUNT","RATE_DAILY","PERIOD"]
[336934905,1725249049069,-872.02,0.00024931,2]
[336934906,1725249049080,-500.0,0.00024931,2]
[336934907,1725249049091,-868.77,0.00024931,2]
[336934908,1725249049102,-500.0,0.00024931,2]
[336934909,1725249049111,-1411.93,0.00024931,2]
[336934910,1725249049121,-500.0,0.00024931,2]
[336934911,1725249049130,-220.25040143,0.00024931,2]
[336934912,1725249049298,-500.0,0.00024657,2]
[336934913,1725249049308,-279.74959857,0.00024931,2]
[336934914,1725249049317,-495.34,0.00024931,2]
[336934915,1725249049327,-1143.58939758,0.00024968,2]
[336934916,1725249049336,-500.0,0.00024973,2]
[336934917,1725249049345,-500.0,0.00024999,2]
[336934918,1725249049355,-159.0,0.00025,2]
[336934919,1725249049364,-503.59009378,0.00025,2]
[336934920,1725249049373,-1143.58939758,0.00025174,2]
[336934921,1725249049383,-3162.72295092,0.00025195,3]
[336934922,1725249049392,-150.0,0.000252,2]
[336934923,1725249049401,-500.0,0.00025204,2]
[336934924,1725249049411,-500.0,0.00025204,2]
[336934925,1725249049420,-500.0,0.00025204,2]
[336934926,1725249049430,-523.2,0.00025204,2]
[336934927,1725249049440,-1067.75,0.00025204,2]
[336934928,1725249049450,-1067.75,0.00025204,2]
[336934929,1725249049459,-1067.75,0.00025204,2]
[336934930,1725249049468,-1067.75,0.00025204,2]
[336934931,1725249049478,-1067.75,0.00025204,2]
[336934932,1725249049488,-1067.75,0.00025204,2]
[336934933,1725249049499,-1067.98,0.00025204,2]
[336934934,1725249049510,-500.0,0.00025205,2]
[336934935,1725249049519,-500.0,0.00025205,2]
[336934936,1725249049529,-500.0,0.00025205,2]
[336934937,1725249049540,-526.53,0.00025205,2]
[336934938,1725249049550,-500.0,0.00025205,2]
[336934939,1725249049560,-500.0,0.00025205,2]
[336934940,1725249049571,-552.33073603,0.00025205,2]
[336934941,1725249049580,-500.0,0.00025205,2]
[336934942,1725249049590,-500.0,0.00025205,2]
[336934943,1725249049600,-727.4,0.00025205,2]
[336934944,1725249049610,-500.0,0.00025205,2]
[336934945,1725249049619,-500.0,0.00025205,2]
[336934946,1725249049628,-500.0,0.00025205,2]
[336934947,1725249049637,-500.0,0.00025205,2]
[336934948,1725249049648,-500.0,0.00025205,2]
[336934949,1725249049659,-500.0,0.00025205,2]
[336934950,1725249049669,-515.85,0.00025205,2]
[336934951,1725249049679,-500.0,0.00025205,2]
[336934952,1725249049688,-500.0,0.00025205,2]
[336934953,1725249049697,-500.0,0.00025205,2]
[336934954,1725249049706,-500.0,0.00025205,2]
[336934955,1725249049720,-512.53,0.00025205,2]
[336934956,1725249049735,-500.0,0.00025205,2]
[336934957,1725249049750,-500.0,0.00025205,2]
[336934958,1725249049763,-500.0,0.00025205,2]
[336934959,1725249049775,-500.0,0.00025205,2]
[336934960,1725249049788,-633.21,0.00025205,2]
[336934961,1725249049802,-500.0,0.00025205,2]
[336934962,1725249049815,-500.0,0.00025205,2]
[336934963,1725249049829,-548.21,0.00025205,2]
[336934964,1725249049842,-509.77,0.00025205,2]
[336934965,1725249049856,-504.25,0.00025205,2]
[336934966,1725249049871,-619.97,0.00025205,2]
[336934967,1725249049883,-500.0,0.00025205,2]
[336934968,1725249049895,-500.0,0.00025205,2]
[336934969,1725249049909,-500.0,0.00025205,2]
[336934970,1725249049925,-500.0,0.00025205,2]
[336934971,1725249049938,-500.0,0.00025205,2]
[336934972,1725249049950,-2506.17,0.00025205,2]
[336934973,1725249049970,-500.0,0.00025205,2]
[336934974,1725249049982,-500.0,0.00025205,2]
[336934975,1725249049993,-282.76255339,0.00025205,2]
[336934976,1725249050008,-851.76,0.00025205,2]
[336934977,1725249050021,-500.0,0.00025205,2]
[336934978,1725249050033,-514.37124645,0.00025205,2]
[336934979,1725249050048,-500.0,0.00025205,2]
[336934980,1725249050063,-500.0,0.00025205,2]
[336934981,1725249050077,-500.0,0.00025205,2]
[336934982,1725249050091,-500.0,0.00025205,2]
[336934983,1725249050101,-546.87,0.00025205,2]
[336934984,1725249050113,-500.0,0.00025205,2]
[336934985,1725249050125,-513.46,0.00025205,2]
[336934986,1725249050138,-500.0,0.00025205,2]
[336934987,1725249050152,-500.0,0.00025205,2]
[336934988,1725249050164,-500.0,0.00025205,2]
[336934989,1725249050178,-500.0,0.00025205,2]
[336934990,1725249050189,-712.55,0.00025205,2]
[336934991,1725249050204,-500.0,0.00025205,2]
[336934992,1725249050216,-500.0,0.00025205,2]
[336934993,1725249050228,-231.121274,0.00025205,7]
[336934994,1725249050239,-500.0,0.00025205,2]
[336934995,1725249050251,-500.0,0.00025205,2]
[336934996,1725249050262,-231.121274,0.00025205,7]
[336934997,1725249050275,-729.91,0.00025205,2]
[336934998,1725249050287,-500.0,0.00025205,2]
[336934999,1725249050298,-677.23,0.00025205,2]
[336935000,1725249050309,-942.55,0.00025205,2]
[336935001,1725249050321,-608.45,0.00025205,2]
[336935002,1725249050333,-679.75,0.00025205,2]
[336935003,1725249050344,-500.0,0.00025205,2]
[336935004,1725249050357,-1054.83,0.00025205,2]
[336935005,1725249050370,-500.0,0.00025205,2]
[336935006,1725249050382,-151.0,0.00025205,7]
[336935007,1725249050395,-500.0,0.00025205,2]
[336935008,1725249050408,-500.0,0.00025205,2]
[336935009,1725249050428,-1431.38,0.00025205,2]
[336935010,1725249050441,-500.0,0.00025205,2]
[336935011,1725249050455,-500.0,0.00025205,2]
[336935012,1725249050469,-1707.48,0.00025205,2]
[336935013,1725249050480,-500.0,0.00025205,2]
[336935014,1725249050492,-691.37,0.00025205,2]
[336935015,1725249050503,-500.0,0.00025205,2]
[336935016,1725249050515,-534.02,0.00025205,2]
[336935017,1725249050528,-2121.62,0.00025205,2]
[336935018,1725249050540,-500.0,0.00025205,2]
[336935019,1725249050553,-515.24,0.00025205,2]
[336935020,1725249050565,-500.0,0.00025205,2]
[336935021,1725249050579,-9335.36,0.00025205,2]
[336935022,1725249050591,-1024.21,0.00025205,2]
[336935023,1725249050602,-151.0,0.00025205,7]
[336935024,1725249050613,-554.6,0.00025205,2]
[336935025,1725249050625,-1324.11,0.00025205,2]
[336935026,1725249050636,-151.0,0.00025205,7]
[336935027,1725249050648,-1650.75,0.00025205,2]
[336935028,1725249050660,-500.0,0.00025205,2]
[336935029,1725249050674,-1286.68,0.00025205,2]
[336935030,1725249050689,-500.0,0.00025205,2]
[336935031,1725249050700,-274.44268248,0.00025205,2]
[336935032,1725249050711,-514.17,0.00025205,2]
[336935033,1725249050723,-500.0,0.00025205,2]
[336935034,1725249050735,-2134.36,0.00025205,2]
[336935035,1725249050748,-500.0,0.00025205,2]
[336935036,1725249050760,-500.0,0.00025205,2]
[336935037,1725249050771,-500.0,0.00025205,2]
[336935038,1725249050783,-574.57,0.00025205,2]
[336935039,1725249050795,-925.72,0.00025205,2]
[336935040,1725249050806,-500.0,0.00025205,2]
[336935041,1725249050818,-1057.36,0.00025205,2]
[336935042,1725249050831,-964.51,0.00025205,2]
[336935043,1725249050842,-1025.99,0.00025205,2]
[336935044,1725249050853,-500.0,0.00025205,2]
[336935045,1725249050865,-500.0,0.00025205,2]
[336935046,1725249050877,-1247.7,0.00025205,2]
[336935047,1725249050888,-3786.83,0.00025205,2]
[336935048,1725249050900,-1234.24,0.00025205,2]
[336935049,1725249050910,-1030.83,0.00025205,2]
[336935050,1725249050922,-1461.26,0.00025205,2]
[336935051,1725249050934,-500.0,0.00025205,2]
[336935052,1725249050945,-1972.57,0.00025205,2]
[336935053,1725249050957,-500.0,0.00025205,2]
[336935054,1725249050966,-500.0,0.00025205,2]
[336935055,1725249050976,-1123.86,0.00025205,2]
[336935056,1725249050985,-500.0,0.00025205,2]
[336935057,1725249050994,-932.45,0.00025205,2]
[336935058,1725249051006,-500.0,0.00025205,2]
[336935059,1725249051017,-771.97,0.00025205,2]
[336935060,1725249051028,-198.60718899,0.00025205,2]
[336935061,1725249051037,-968.5,0.00025205,2]
[336935062,1725249051047,-726.77,0.00025205,2]
[336935063,1725249051056,-968.21,0.00025205,2]
[336935064,1725249051066,-758.26,0.00025205,2]
[336935065,1725249051076,-500.0,0.00025205,2]
[336935066,1725249051087,-690.19,0.00025205,2]
[336935067,1725249051096,-500.78,0.00025205,2]
[336935068,1725249051107,-1384.36,0.00025205,2]
[336935069,1725249051117,-986.58,0.00025205,2]
[336935070,1725249051127,-500.0,0.00025205,2]
[336935071,1725249051137,-641.19,0.00025205,2]
[336935072,1725249051147,-500.0,0.00025205,2]
[336935073,1725249051157,-500.0,0.00025205,2]
[336935074,1725249051168,-667.78,0.00025205,2]
[336935075,1725249051178,-500.0,0.00025205,2]
[336935076,1725249051188,-1205.64,0.00025205,2]
[336935077,1725249051198,-682.78,0.00025205,2]
[336935078,1725249051207,-567.4,0.00025205,2]
[336935079,1725249051216,-783.38,0.00025205,2]
[336935080,1725249051225,-500.0,0.00025205,2]
[336935081,1725249051235,-5865.09,0.00025205,2]
[336935082,1725249051245,-1139.46,0.00025205,2]
[336935083,1725249051465,-1135.19,0.00025205,2]
[336935084,1725249051480,-563.65,0.00025205,2]
[336935085,1725249051495,-573.57,0.00025205,2]
[336935086,1725249051506,-1475.14,0.00025205,2]
[336935087,1725249051516,-1286.38,0.00025205,2]
[336935088,1725249051525,-2656.81,0.00025205,2]
[336935089,1725249051534,-1029.26,0.00025205,2]
[336935090,1725249051543,-950.45,0.00025205,2]
[336935091,1725249051553,-978.3,0.00025205,2]
[336935092,1725249051562,-500.0,0.00025205,2]
[336935093,1725249051571,-6599.17,0.00025205,2]
[336935094,1725249051580,-953.68,0.00025205,2]
[336935095,1725249051589,-2088.11,0.00025205,2]
[336935096,1725249051598,-1472.52,0.00025205,2]
[336935097,1725249051608,-500.0,0.00025205,2]
[336935098,1725249051618,-909.08,0.00025205,2]
[336935099,1725249051629,-907.65,0.00025205,2]
[336935100,1725249051638,-500.0,0.00025205,2]
[336935101,1725249051650,-500.0,0.00025205,2]
[336935102,1725249051662,-1077.12,0.00025205,2]
[336935103,1725249051672,-500.0,0.00025205,2]
[336935104,1725249051681,-500.0,0.00025205,2]
[336935105,1725249051691,-500.0,0.00025205,2]
[336935106,1725249051700,-872.02,0.00025205,2]
[336935107,1725249051710,-868.77,0.00025205,2]
[336935108,1725249051719,-500.0,0.00025205,2]
[336935109,1725249051728,-1411.93,0.00025205,2]
[336935110,1725249051738,-1000.0,0.00025221,2]
[336935111,1725249051747,-503.59009378,0.0002525,2]
[336935112,1725249051757,-194.445948,0.00025296,2]
[336935113,1725249051767,-1143.58939758,0.00025379,2]
[336935114,1725249051776,-3162.72295092,0.00025469,3]
[336935115,1725249051787,-500.0,0.00025479,2]
[336935116,1725249051797,-238.93114802,0.00025479,2]
[336935117,1725249051816,-261.06885198,0.00025479,2]
[336935118,1725249051826,-15.44991865,0.00025479,2]
[336935119,1725249056793,144.01591338,0.00014247,2]
[336935120,1725249056816,23.87405662,0.00014247,2]
[336935121,1725249104009,192.31584973,0.00022642,2]
[336935126,1725249830408,211.4,0.0002,2]
[336935127,1725249933020,-202.5652639,0.00023836,2]
[336935128,1725249952748,-150.7261451,0.00023836,2]
[336935129,1725249952771,-250.0,0.00023838,2]
[336935130,1725249952793,-200.99045528,0.00023904,2]
[336935132,1725250156764,-386.6813362,0.00023723,2]
[336935133,1725250156785,-227.450477,0.00023823,2]
[336935134,1725250156812,-344.212966,0.00023836,2]
[336935135,1725250156833,-227.450477,0.00023888,2]
[336935136,1725250156855,-227.450477,0.00023954,2]
[336935137,1725250156876,-227.450477,0.00024019,2]
[336935138,1725250156896,-227.450477,0.00024084,2]
[336935139,1725250156917,-227.450477,0.0002415,2]
[336935140,1725250156939,-227.450477,0.00024215,2]
[336935141,1725250156960,-227.450477,0.0002428,2]
[336935142,1725250200744,175.586407,0.00014247,2]
[336935143,1725250217989,4.56252643,0.00023723,2]
[336935147,1725250232182,-544.14607138,0.00023723,2]
[336935148,1725250232195,-227.450477,0.00024346,2]
[336935149,1725250232205,-227.450477,0.00024411,2]
[336935150,1725250232215,-227.450477,0.00024476,2]
[336935151,1725250232224,-227.450477,0.00024542,2]
[336935152,1725250232233,-133.43375939,0.00024557,2]
[336935193,1725250238405,-39.22434223,0.00024557,2]
[336935195,1725250238415,-1289.90137871,0.00024557,2]
[336935197,1725250238425,-227.450477,0.00024607,2]
[336935200,1725250238434,-210.84819672,0.00024647,3]
[336935202,1725250238444,-300.0,0.00024656,2]
[336935203,1725250238453,-300.0,0.00024656,2]
[336935205,1725250238463,-500.0,0.00024657,2]
[336935208,1725250238474,-500.0,0.00024657,2]
[336935210,1725250238484,-446.3662837,0.00024657,2]
[336935212,1725250238494,-500.0,0.00024657,2]
[336935214,1725250238504,-500.0,0.00024657,2]
[336935216,1725250238515,-536.3871627,0.00024657,2]
[336935218,1725250238525,-500.0,0.00024657,2]
[336935220,1725250238536,-500.0,0.00024657,2]
[336935222,1725250238546,-500.0,0.00024657,2]
[336935225,1725250238558,-67.95147267,0.00024657,2]
[336935233,1725250238642,-432.04852733,0.00024657,2]
[336935235,1725250238655,-604.15753942,0.00024657,2]
[336935237,1725250238666,-139.73443378,0.00024657,2]
[336935414,1725250240400,-360.26556622,0.00024657,2]
[336935415,1725250240410,-500.0,0.00024657,2]
[336935416,1725250240419,-500.0,0.00024657,2]
[336935417,1725250240429,-500.0,0.00024657,2]
[336935418,1725250240438,-500.0,0.00024657,2]
[336935419,1725250240448,-500.0,0.00024657,2]
[336935420,1725250240457,-500.0,0.00024657,2]
[336935421,1725250240466,-500.0,0.00024657,2]
[336935422,1725250240475,-500.0,0.00024657,2]
[336935423,1725250240484,-500.0,0.00024657,2]
[336935424,1725250240494,-500.0,0.00024657,2]
[336935425,1725250240503,-500.0,0.00024657,2]
[336935426,1725250240513,-500.0,0.00024657,2]
[336935427,1725250240522,-500.0,0.00024657,2]
[336935428,1725250240531,-497.48396661,0.00024657,2]
[336935429,1725250240540,-153.00000002,0.00024657,2]
[336935430,1725250240549,-500.0,0.00024657,2]
[336935431,1725250240558,-500.0,0.00024657,2]
[336935432,1725250240568,-500.0,0.00024657,2]
[336935433,1725250240580,-517.04130698,0.00024657,2]
[336935434,1725250240589,-500.0,0.00024657,2]
[336935435,1725250240598,-500.0,0.00024657,2]
[336935436,1725250240609,-500.0,0.00024657,2]
[336935437,1725250240618,-461.40907727,0.00024657,2]
[336935438,1725250240627,-500.0,0.00024657,2]
[336935439,1725250240636,-500.0,0.00024657,2]
[336935440,1725250240646,-503.17326192,0.00024657,2]
[336935441,1725250240655,-571.3525041,0.00024657,2]
[336935442,1725250240665,-500.0,0.00024657,2]
[336935443,1725250240674,-501.46132272,0.00024657,2]
[336935444,1725250240683,-500.0,0.00024657,2]
[336935445,1725250240693,-500.0,0.00024657,2]
[336935446,1725250240702,-500.0,0.00024657,2]
[336935447,1725250240711,-500.0,0.00024657,2]
[336935448,1725250240721,-500.0,0.00024657,2]
[336935449,1725250240731,-500.0,0.00024657,2]
[336935450,1725250240740,-500.49601982,0.00024657,2]
[336935451,1725250240749,-500.0,0.00024657,2]
[336935452,1725250240758,-500.0,0.00024657,2]
[336935453,1725250240767,-571.27,0.00024657,2]
[336935454,1725250240776,-580.6195655,0.00024657,2]
[336935455,1725250240785,-500.0,0.00024657,2]
[336935456,1725250240795,-500.0,0.00024657,2]
[336935457,1725250240804,-540.76280674,0.00024657,2]
[336935458,1725250240813,-500.0,0.00024657,2]
[336935459,1725250240822,-500.0,0.00024657,2]
[336935460,1725250240830,-502.94461312,0.00024657,2]
[336935461,1725250240839,-500.0,0.00024657,2]
[336935462,1725250240848,-500.0,0.00024657,2]
[336935463,1725250240858,-501.5575265,0.00024657,2]
[336935464,1725250240867,-500.0,0.00024657,2]
[336935465,1725250240876,-500.0,0.00024657,2]
[336935466,1725250240886,-500.0,0.00024657,2]
[336935467,1725250240895,-587.88976229,0.00024657,2]
[336935468,1725250240907,-500.0,0.00024657,2]
[336935469,1725250240919,-500.0,0.00024657,2]
[336935470,1725250240930,-500.0,0.00024657,2]
[336935471,1725250240941,-500.0,0.00024657,2]
[336935472,1725250240951,-501.53643517,0.00024657,2]
[336935473,1725250240963,-500.0,0.00024657,2]
[336935474,1725250240973,-500.0,0.00024657,2]
[336935475,1725250240982,-500.0,0.00024657,2]
[336935476,1725250240991,-500.0,0.00024657,2]
[336935477,1725250241000,-500.0,0.00024657,2]
[336935478,1725250241010,-500.0,0.00024657,2]
[336935479,1725250241019,-500.0,0.00024657,2]
[336935480,1725250241029,-500.0,0.00024657,2]
[336935481,1725250241041,-500.0,0.00024657,2]
[336935482,1725250241051,-500.0,0.00024657,2]
[336935483,1725250241061,-500.0,0.00024657,2]
[336935484,1725250241070,-500.0,0.00024657,2]
[336935485,1725250241080,-503.86842878,0.00024657,2]
[336935486,1725250241089,-500.0,0.00024657,2]
[336935487,1725250241099,-500.0,0.00024657,2]
[336935488,1725250241109,-500.0,0.00024657,2]
[336935496,1725250241292,-500.0,0.00024657,2]
[336935498,1725250241303,-500.0,0.00024657,2]
[336935500,1725250241313,-500.0,0.00024657,2]
[336935502,1725250241322,-500.0,0.00024657,2]
[336935504,1725250241332,-500.0,0.00024657,2]
[336935505,1725250241342,-500.0,0.00024657,2]
[336935506,1725250241351,-500.0,0.00024657,2]
[336935507,1725250241361,-653.47,0.00024657,2]
[336935508,1725250241371,-232.21282947,0.00024657,2]
[336935509,1725250241380,-500.0,0.00024657,2]
[336935510,1725250241390,-500.0,0.00024657,2]
[336935511,1725250241399,-500.0,0.00024657,2]
[336935512,1725250241408,-500.0,0.00024657,2]
[336935513,1725250241418,-500.0,0.00024657,2]
[336935514,1725250241428,-500.0,0.00024657,2]
[336935515,1725250241437,-500.0,0.00024657,2]
[336935516,1725250241447,-500.0,0.00024657,2]
[336935517,1725250241456,-500.0,0.00024657,2]
[336935518,1725250241465,-500.0,0.00024657,2]
[336935519,1725250241475,-500.0,0.00024657,2]
[336935520,1725250241486,-500.0,0.00024657,2]
[336935521,1725250241496,-485.12013036,0.00024657,2]
[336935522,1725250241506,-500.0,0.00024657,2]
[336935523,1725250241517,-500.0,0.00024657,2]
[336935524,1725250241528,-501.68855469,0.00024657,2]
[336935525,1725250241539,-495.4412473,0.00024657,2]
[336935526,1725250241550,-500.0,0.00024657,2]
[336935527,1725250241560,-500.0,0.00024657,2]
[336935528,1725250241572,-500.0,0.00024657,2]
[336935529,1725250241584,-500.0,0.00024657,2]
[336935530,1725250241594,-500.0,0.00024657,2]
[336935531,1725250241604,-500.0,0.00024657,2]
[336935532,1725250241618,-500.0,0.00024657,2]
[336935533,1725250241629,-538.93,0.00024657,2]
[336935534,1725250241641,-513.57387618,0.00024657,2]
[336935535,1725250241651,-500.0,0.00024657,2]
[336935536,1725250241663,-500.0,0.00024657,2]
[336935537,1725250241672,-500.0,0.00024657,2]
[336935538,1725250241681,-500.0,0.00024657,2]
[336935539,1725250241691,-500.0,0.00024657,2]
[336935540,1725250241701,-2701.95,0.00024657,2]
[336935541,1725250241711,-500.0,0.00024657,2]
[336935542,1725250241720,-500.0,0.00024657,2]
[336935543,1725250241729,-254.05366792,0.00024657,2]
[336935544,1725250241738,-500.0,0.00024657,2]
[336935545,1725250241748,-635.81,0.00024657,2]
[336935546,1725250241759,-500.0,0.00024657,2]
[336935547,1725250241769,-500.0,0.00024657,2]
[336935548,1725250241780,-500.0,0.00024657,2]
[336935549,1725250241791,-500.0,0.00024657,2]
[336935550,1725250241800,-500.0,0.00024657,2]
[336935551,1725250241810,-500.0,0.00024657,2]
[336935552,1725250241820,-358.59328275,0.00024657,2]
[336935553,1725250241833,-505.74595886,0.00024657,2]
[336935554,1725250241843,-500.0,0.00024657,2]
[336935555,1725250241853,-875.0,0.00024657,2]
[336935556,1725250241866,-500.0,0.00024657,2]
[336935557,1725250241879,-500.0,0.00024657,2]
[336935558,1725250241892,-500.0,0.00024657,2]
[336935559,1725250241905,-500.0,0.00024657,2]
[336935560,1725250241915,-500.0,0.00024657,2]
[336935561,1725250241926,-500.0,0.00024657,2]
[336935562,1725250241937,-500.0,0.00024657,2]
[336935563,1725250241947,-507.46,0.00024657,2]
[336935564,1725250241957,-500.0,0.00024657,2]
[336935565,1725250241967,-500.0,0.00024657,2]
[336935566,1725250241977,-500.0,0.00024657,2]
[336935567,1725250241987,-500.0,0.00024657,2]
[336935568,1725250241996,-500.0,0.00024657,2]
[336935569,1725250242006,-500.0,0.00024657,2]
[336935570,1725250242017,-500.0,0.00024657,2]
[336935571,1725250242026,-500.0,0.00024657,2]
[336935572,1725250242035,-500.0,0.00024657,2]
[336935573,1725250242046,-500.0,0.00024657,2]
[336935574,1725250242057,-98.19962911,0.00024657,2]
[336935575,1725250242075,-626.18037089,0.00024657,2]
[336935576,1725250242085,-500.0,0.00024657,2]
[336935577,1725250242095,-500.0,0.00024657,2]
[336935578,1725250242105,-500.0,0.00024657,2]
[336935579,1725250242116,-500.0,0.00024657,2]
[336935580,1725250242127,-500.0,0.00024657,2]
[336935581,1725250242137,-592.83435881,0.00024657,2]
[336935582,1725250242147,-500.0,0.00024657,2]
[336935583,1725250242158,-505.84427358,0.00024657,2]
[336935584,1725250242168,-500.0,0.00024657,2]
[336935585,1725250242177,-500.0,0.00024657,2]
[336935586,1725250242186,-500.0,0.00024657,2]
[336935587,1725250242196,-500.0,0.00024657,2]
[336935588,1725250242205,-722.97,0.00024657,2]
[336935589,1725250242215,-500.0,0.00024657,2]
[336935590,1725250242224,-517.87,0.00024657,2]
[336935591,1725250242233,-500.0,0.00024657,2]
[336935592,1725250242243,-500.0,0.00024657,2]
[336935593,1725250242253,-500.0,0.00024657,2]
[336935594,1725250242263,-370.89128119,0.00024657,2]
[336935769,1725251142143,-163.638579,0.00023372,2]
[336935770,1725251142167,-164.0670824,0.00023391,2]
[336935771,1725251142189,-163.455529,0.0002381,2]
[336935772,1725251142211,-348.106126,0.00023836,2]
[336935773,1725251142234,-160.0,0.0002391,3]
[336935774,1725251142258,-42.18788999,0.00023914,2]
[336935775,1725251157101,-121.26763901,0.00023914,2]
[336935776,1725251157124,-50.73602691,0.00024017,2]
[336935777,1725251244195,-158.843162,0.00023812,2]
[336935778,1725251244216,-158.843162,0.00023936,2]
[336935779,1725251244239,-158.843162,0.00024061,2]
[336935780,1725251244260,-2.33067003,0.00024185,2]
[336935781,1725251251096,-156.51249197,0.00024185,2]
[336935782,1725251251123,-158.843162,0.00024309,2]
[336935783,1725251251144,-153.0,0.000244,2]
[336935784,1725251251169,-20.58686818,0.0002442,4]
[336935837,1725251361424,174.361345,0.00014247,2]
[336935839,1725251364112,-350.749436,0.00023836,2]
[336935862,1725251438563,-139.41313182,0.0002442,4]
[336935863,1725251438574,-158.843162,0.00024433,2]
[336935864,1725251438583,-158.843162,0.00024557,2]
[336935865,1725251438593,-2000.0,0.00024557,2]
[336935866,1725251438603,-228.71787954,0.00024557,2]
[336935867,1725251438612,-1128.66370638,0.00024557,2]
[336935868,1725251438621,-206036.32836172,0.000246,10]
[336935869,1725251438630,-2655.37766264,0.00024647,3]
[336935870,1725251438640,-331.92220783,0.00024648,3]
[336935871,1725251438650,-180.89007198,0.00024656,2]
[336935872,1725251438660,-300.0,0.00024656,2]
[336935873,1725251438673,-203.0,0.00024656,2]
[336935874,1725251438683,-50975.33475419,0.00024657,11]
[336935875,1725251438693,-500.0,0.00024657,2]
[336935876,1725251438703,-503.86991175,0.00024657,2]
[336935877,1725251438713,-500.0,0.00024657,2]
[336935878,1725251438723,-500.0,0.00024657,2]
[336935879,1725251438732,-296.30526398,0.00024657,2]
[336935880,1725251438742,-500.0,0.00024657,2]
[336935881,1725251438751,-508.45873812,0.00024657,2]
[336935882,1725251438761,-500.0,0.00024657,2]
[336935883,1725251438771,-521.72581007,0.00024657,2]
[336935884,1725251438781,-500.0,0.00024657,2]
[336935885,1725251438790,-500.0,0.00024657,2]
[336935886,1725251438800,-500.0,0.00024657,2]
[336935887,1725251438810,-500.0,0.00024657,2]
[336935888,1725251438822,-500.0,0.00024657,2]
[336935889,1725251438832,-500.0,0.00024657,2]
[336935890,1725251438843,-500.0,0.00024657,2]
[336935891,1725251438854,-500.0,0.00024657,2]
[336935892,1725251438864,-500.0,0.00024657,2]
[336935893,1725251438874,-500.0,0.00024657,2]
[336935894,1725251438884,-500.0,0.00024657,2]
[336935895,1725251438894,-500.0,0.00024657,2]
[336935896,1725251438904,-500.0,0.00024657,2]
[336935897,1725251438914,-500.0,0.00024657,2]
[336935898,1725251438924,-500.0,0.00024657,2]
[336935899,1725251438934,-500.0,0.00024657,2]
[336935900,1725251438944,-500.0,0.00024657,2]
[336935901,1725251438954,-500.0,0.00024657,2]
[336935902,1725251438964,-500.0,0.00024657,2]
[336935903,1725251438974,-503.96917444,0.00024657,2]
[336935904,1725251438984,-232.21282947,0.00024657,2]
[336935905,1725251438994,-500.0,0.00024657,2]
[336935906,1725251439003,-500.0,0.00024657,2]
[336935907,1725251439013,-534.38,0.00024657,2]
[336935908,1725251439022,-500.0,0.00024657,2]
[336935909,1725251439032,-500.0,0.00024657,2]
[336935910,1725251439042,-542.89,0.00024657,2]
[336935911,1725251439051,-500.0,0.00024657,2]
[336935912,1725251439061,-505.56234461,0.00024657,2]
[336935913,1725251439070,-500.0,0.00024657,2]
[336935914,1725251439080,-500.0,0.00024657,2]